[Event "Late-Titled-Tuesday-Blitz-September-19-2023"]
[Site "Chess.com"]
[Date "2023.09.19"]
[Round "8"]
[White "Cambek64"]
[Black "mac0504"]
[Result "1/2-1/2"]
[WhiteElo "2472"]
[BlackElo "2565"]
[TimeControl "180+1"]
[EndTime "15:26:46 PDT"]
[Termination "Game drawn by repetition"]

1. e4 {[%clk 0:02:32.3]} 1... c6 {[%clk 0:02:58.3]} 2. d4 {[%clk 0:02:28.5]}
2... g6 {[%clk 0:02:57.9]} 3. c4 {[%clk 0:02:27.4]} 3... d6 {[%clk 0:02:57.9]}
4. Nc3 {[%clk 0:02:27.8]} 4... Bg7 {[%clk 0:02:58.1]} 5. Be3 {[%clk 0:02:28]}
5... Nf6 {[%clk 0:02:57.2]} 6. f3 {[%clk 0:02:28.5]} 6... O-O {[%clk 0:02:57.9]}
7. Qd2 {[%clk 0:02:28.7]} 7... a6 {[%clk 0:02:58.6]} 8. Bd3 {[%clk 0:02:27.9]}
8... b5 {[%clk 0:02:59.1]} 9. Nge2 {[%clk 0:02:27.6]} 9... e5 {[%clk 0:02:55.6]}
10. d5 {[%clk 0:02:23.1]} 10... cxd5 {[%clk 0:02:50.9]} 11. cxd5 {[%clk
0:02:22.2]} 11... Nbd7 {[%clk 0:02:45.5]} 12. O-O {[%clk 0:02:14.2]} 12... Nh5
{[%clk 0:02:43.5]} 13. a4 {[%clk 0:02:13.7]} 13... b4 {[%clk 0:02:38.7]} 14. Na2
{[%clk 0:02:13.2]} 14... a5 {[%clk 0:02:38.5]} 15. Nac1 {[%clk 0:02:13.1]} 15...
f5 {[%clk 0:01:58.5]} 16. Nb3 {[%clk 0:02:08.7]} 16... Bb7 {[%clk 0:01:41.1]}
17. Rac1 {[%clk 0:01:59.1]} 17... Rc8 {[%clk 0:01:39]} 18. Rxc8 {[%clk
0:01:57.3]} 18... Bxc8 {[%clk 0:01:39.9]} 19. Rc1 {[%clk 0:01:49]} 19... Bb7
{[%clk 0:01:40]} 20. h3 {[%clk 0:01:40.8]} 20... fxe4 {[%clk 0:01:29.1]} 21.
fxe4 {[%clk 0:01:33.6]} 21... Nf4 {[%clk 0:01:26.9]} 22. Nxf4 {[%clk 0:01:25.8]}
22... exf4 {[%clk 0:01:27.8]} 23. Bxf4 {[%clk 0:01:22.9]} 23... Ne5 {[%clk
0:01:26.3]} 24. Be2 {[%clk 0:01:18.9]} 24... Qh4 {[%clk 0:01:19.5]} 25. Rf1
{[%clk 0:01:16.6]} 25... Bc8 {[%clk 0:01:10.8]} 26. Nxa5 {[%clk 0:01:12.8]}
26... Bxh3 {[%clk 0:00:08.4]} 27. gxh3 {[%clk 0:01:11.3]} 27... Bh6 {[%clk
0:00:08]} 28. Bxh6 {[%clk 0:00:45.9]} 28... Qg3+ {[%clk 0:00:07.4]} 29. Kh1
{[%clk 0:00:46.3]} 29... Qxh3+ {[%clk 0:00:05.4]} 30. Kg1 {[%clk 0:00:44.6]}
30... Qg3+ {[%clk 0:00:06.3]} 31. Kh1 {[%clk 0:00:44.6]} 31... Qh3+ {[%clk
0:00:04]} 32. Kg1 {[%clk 0:00:44.6]} 32... Qg3+ {[%clk 0:00:04.9]} 33. Kh1
{[%clk 0:00:44.2]} 33... Qh3+ {[%clk 0:00:03.6]} 1/2-1/2

[Event "Late-Titled-Tuesday-Blitz-September-19-2023"]
[Site "Chess.com"]
[Date "2023.09.19"]
[Round "8"]
[White "aNaartjieZA"]
[Black "wild3000"]
[Result "1-0"]
[WhiteElo "2593"]
[BlackElo "2468"]
[TimeControl "180+1"]
[EndTime "15:26:59 PDT"]
[Termination "aNaartjieZA won on time"]

1. e4 {[%clk 0:03:00.9]} 1... a6 {[%clk 0:02:45.5]} 2. Nf3 {[%clk 0:03:00]} 2...
e6 {[%clk 0:02:43.5]} 3. d3 {[%clk 0:02:59.1]} 3... d5 {[%clk 0:02:41.5]} 4.
Nbd2 {[%clk 0:02:59]} 4... c5 {[%clk 0:02:38.8]} 5. g3 {[%clk 0:02:58.9]} 5...
Nf6 {[%clk 0:02:36.6]} 6. Bg2 {[%clk 0:02:59]} 6... Be7 {[%clk 0:02:36.8]} 7.
O-O {[%clk 0:02:59.2]} 7... O-O {[%clk 0:02:36.8]} 8. Re1 {[%clk 0:02:59.2]}
8... Nc6 {[%clk 0:02:37]} 9. e5 {[%clk 0:02:59.3]} 9... Nd7 {[%clk 0:02:35.6]}
10. Nf1 {[%clk 0:02:59.5]} 10... b5 {[%clk 0:02:34.6]} 11. h4 {[%clk 0:02:59.3]}
11... Qc7 {[%clk 0:02:32.4]} 12. Bf4 {[%clk 0:02:58.7]} 12... Bb7 {[%clk
0:02:30.7]} 13. N1h2 {[%clk 0:02:58.7]} 13... a5 {[%clk 0:02:26.5]} 14. Ng5
{[%clk 0:02:43.4]} 14... Bxg5 {[%clk 0:01:59]} 15. hxg5 {[%clk 0:02:42.2]} 15...
a4 {[%clk 0:01:47.6]} 16. Qh5 {[%clk 0:02:39.4]} 16... Ne7 {[%clk 0:01:38.6]}
17. Ng4 {[%clk 0:02:35.7]} 17... Ng6 {[%clk 0:01:37.3]} 18. Bf3 {[%clk
0:02:09.5]} 18... d4 {[%clk 0:01:37.2]} 19. Bxb7 {[%clk 0:01:50]} 19... Qxb7
{[%clk 0:01:37.1]} 20. Re4 {[%clk 0:01:48.8]} 20... c4 {[%clk 0:01:14.2]} 21.
Rxd4 {[%clk 0:01:44.6]} 21... cxd3 {[%clk 0:01:06.4]} 22. cxd3 {[%clk
0:01:44.2]} 22... Rfd8 {[%clk 0:01:01.1]} 23. Rd6 {[%clk 0:01:23]} 23... Ndf8
{[%clk 0:00:48.2]} 24. Nf6+ {[%clk 0:01:04]} 24... Kh8 {[%clk 0:00:46.7]} 25.
Ne4 {[%clk 0:01:03.9]} 25... Rxd6 {[%clk 0:00:38.5]} 26. Nxd6 {[%clk 0:01:03.5]}
26... Qd7 {[%clk 0:00:30.1]} 27. Rc1 {[%clk 0:01:01.9]} 27... Kg8 {[%clk
0:00:29]} 28. Qf3 {[%clk 0:00:59.9]} 28... Rd8 {[%clk 0:00:27.6]} 29. d4 {[%clk
0:00:58.7]} 29... Qa7 {[%clk 0:00:25.1]} 30. Be3 {[%clk 0:00:56.9]} 30... Qb8
{[%clk 0:00:18.8]} 31. Qxf7+ {[%clk 0:00:55.9]} 31... Kh8 {[%clk 0:00:19]} 32.
Rc7 {[%clk 0:00:54.1]} 32... Nd7 {[%clk 0:00:11.6]} 33. Rxd7 {[%clk 0:00:51.3]}
33... Rg8 {[%clk 0:00:12.5]} 34. Qxe6 {[%clk 0:00:46.3]} 34... Qf8 {[%clk
0:00:11]} 35. Nf7+ {[%clk 0:00:44]} 1-0

[Event "Late-Titled-Tuesday-Blitz-September-19-2023"]
[Site "Chess.com"]
[Date "2023.09.19"]
[Round "8"]
[White "egnfanclub"]
[Black "Orest_Vovk"]
[Result "0-1"]
[WhiteElo "2370"]
[BlackElo "2560"]
[TimeControl "180+1"]
[EndTime "15:27:00 PDT"]
[Termination "Orest_Vovk won by resignation"]

1. e4 {[%clk 0:03:00.9]} 1... g6 {[%clk 0:02:58.1]} 2. Nc3 {[%clk 0:03:00.3]}
2... Nf6 {[%clk 0:02:57.6]} 3. f4 {[%clk 0:03:01]} 3... d5 {[%clk 0:02:56.9]} 4.
e5 {[%clk 0:02:59.3]} 4... d4 {[%clk 0:02:56.8]} 5. exf6 {[%clk 0:02:56.3]} 5...
dxc3 {[%clk 0:02:56.7]} 6. fxe7 {[%clk 0:02:56.7]} 6... cxd2+ {[%clk 0:02:56.5]}
7. Bxd2 {[%clk 0:02:56.2]} 7... Qxe7+ {[%clk 0:02:53.3]} 8. Qe2 {[%clk
0:02:56.7]} 8... Qxe2+ {[%clk 0:02:52.5]} 9. Bxe2 {[%clk 0:02:56.9]} 9... Bg7
{[%clk 0:02:52.8]} 10. O-O-O {[%clk 0:02:55.3]} 10... O-O {[%clk 0:02:52.5]} 11.
Nf3 {[%clk 0:02:56]} 11... Nc6 {[%clk 0:02:51.8]} 12. Bb5 {[%clk 0:02:40.9]}
12... Nd4 {[%clk 0:02:26]} 13. Nxd4 {[%clk 0:02:40.2]} 13... Bxd4 {[%clk
0:02:24.9]} 14. Bb4 {[%clk 0:02:14.1]} 14... Be3+ {[%clk 0:02:24]} 15. Kb1
{[%clk 0:02:11.1]} 15... c5 {[%clk 0:02:24]} 16. Rhe1 {[%clk 0:01:56.6]} 16...
Bg4 {[%clk 0:02:09.8]} 17. Rd3 {[%clk 0:01:38.3]} 17... cxb4 {[%clk 0:01:48.7]}
18. Rdxe3 {[%clk 0:01:35.1]} 18... Be6 {[%clk 0:01:47]} 19. h3 {[%clk
0:01:24.7]} 19... h5 {[%clk 0:01:42.6]} 20. Rd1 {[%clk 0:01:23.9]} 20... a6
{[%clk 0:01:39]} 21. Bd3 {[%clk 0:01:23.3]} 21... Rfd8 {[%clk 0:01:36.1]} 22.
Rg1 {[%clk 0:01:15.1]} 22... Rd4 {[%clk 0:01:33.9]} 23. Rf1 {[%clk 0:00:56.9]}
23... Rad8 {[%clk 0:01:28.7]} 24. b3 {[%clk 0:00:55.1]} 24... Kg7 {[%clk
0:01:26.8]} 25. f5 {[%clk 0:00:52.9]} 25... Bxf5 {[%clk 0:01:16.5]} 26. Bxf5
{[%clk 0:00:53.1]} 26... Rd1+ {[%clk 0:01:16.4]} 27. Rxd1 {[%clk 0:00:48.2]}
27... Rxd1+ {[%clk 0:01:17.3]} 28. Kb2 {[%clk 0:00:48.8]} 28... gxf5 {[%clk
0:01:17.7]} 29. Rf3 {[%clk 0:00:32]} 29... Kg6 {[%clk 0:01:12.3]} 30. Rf4 {[%clk
0:00:32.3]} 30... a5 {[%clk 0:01:10.3]} 31. g4 {[%clk 0:00:32.5]} 31... fxg4
{[%clk 0:01:08.7]} 32. hxg4 {[%clk 0:00:33.4]} 32... h4 {[%clk 0:01:09.1]} 33.
Rf5 {[%clk 0:00:19]} 33... Rg1 {[%clk 0:00:58.8]} 34. Rxa5 {[%clk 0:00:17.9]}
34... Rxg4 {[%clk 0:00:54.8]} 35. Ra8 {[%clk 0:00:18.4]} 35... Kg7 {[%clk
0:00:49.8]} 36. Ra5 {[%clk 0:00:16.1]} 36... Rg6 {[%clk 0:00:45.3]} 37. Rh5
{[%clk 0:00:14.9]} 37... Rh6 {[%clk 0:00:45]} 38. Rg5+ {[%clk 0:00:15.4]} 38...
Kf6 {[%clk 0:00:45]} 39. Rg1 {[%clk 0:00:14.2]} 39... h3 {[%clk 0:00:45.3]} 40.
Rh1 {[%clk 0:00:14.4]} 40... h2 {[%clk 0:00:44.1]} 41. c4 {[%clk 0:00:15.3]}
41... Kf5 {[%clk 0:00:41.9]} 42. Kc2 {[%clk 0:00:15.4]} 42... Kf4 {[%clk
0:00:41.7]} 0-1

[Event "Late-Titled-Tuesday-Blitz-September-19-2023"]
[Site "Chess.com"]
[Date "2023.09.19"]
[Round "8"]
[White "Bilan_Danila"]
[Black "Rodalquilar"]
[Result "0-1"]
[WhiteElo "2573"]
[BlackElo "2749"]
[TimeControl "180+1"]
[EndTime "15:27:03 PDT"]
[Termination "Rodalquilar won on time"]

1. d4 {[%clk 0:02:59.6]} 1... d5 {[%clk 0:03:00.1]} 2. Nf3 {[%clk 0:02:59]} 2...
Nf6 {[%clk 0:03:00]} 3. c4 {[%clk 0:02:59]} 3... e6 {[%clk 0:03:00]} 4. Nc3
{[%clk 0:02:57.7]} 4... a6 {[%clk 0:02:54.9]} 5. cxd5 {[%clk 0:02:57.2]} 5...
exd5 {[%clk 0:02:55.4]} 6. Bg5 {[%clk 0:02:55.3]} 6... Be6 {[%clk 0:02:55.6]} 7.
e3 {[%clk 0:02:55.3]} 7... Nbd7 {[%clk 0:02:55.9]} 8. Bd3 {[%clk 0:02:53.8]}
8... Bd6 {[%clk 0:02:56]} 9. O-O {[%clk 0:02:49.1]} 9... c6 {[%clk 0:02:56.1]}
10. Qc2 {[%clk 0:02:40.5]} 10... Qc7 {[%clk 0:02:54.3]} 11. Bh4 {[%clk 0:02:22]}
11... h6 {[%clk 0:02:54.1]} 12. Bg3 {[%clk 0:02:20.2]} 12... Bxg3 {[%clk
0:02:53.6]} 13. hxg3 {[%clk 0:02:21.1]} 13... Qd6 {[%clk 0:02:53.9]} 14. Na4
{[%clk 0:02:17.6]} 14... O-O {[%clk 0:02:49.4]} 15. Nc5 {[%clk 0:02:16.1]} 15...
Nxc5 {[%clk 0:02:17.7]} 16. dxc5 {[%clk 0:02:14]} 16... Qe7 {[%clk 0:02:17.9]}
17. Nd4 {[%clk 0:02:07.3]} 17... Ng4 {[%clk 0:02:16.2]} 18. Bf5 {[%clk
0:01:52.5]} 18... Bxf5 {[%clk 0:02:08.5]} 19. Qxf5 {[%clk 0:01:53.4]} 19... Nf6
{[%clk 0:01:35.9]} 20. b4 {[%clk 0:01:46.9]} 20... Ne4 {[%clk 0:01:36.2]} 21.
Qf4 {[%clk 0:01:26.6]} 21... Rfe8 {[%clk 0:00:51.5]} 22. Rfd1 {[%clk 0:01:19.6]}
22... Qf8 {[%clk 0:00:47.5]} 23. Rd3 {[%clk 0:01:09.3]} 23... g6 {[%clk
0:00:46.1]} 24. Rdd1 {[%clk 0:01:03.7]} 24... h5 {[%clk 0:00:45.2]} 25. g4
{[%clk 0:00:54.7]} 25... hxg4 {[%clk 0:00:42.5]} 26. Qxg4 {[%clk 0:00:55.6]}
26... Re5 {[%clk 0:00:31.6]} 27. Kf1 {[%clk 0:00:12]} 27... Qh6 {[%clk
0:00:26.4]} 28. Rdc1 {[%clk 0:00:03.1]} 28... Nxf2 {[%clk 0:00:19.1]} 29. Nf3
{[%clk 0:00:02]} 29... Nxg4 {[%clk 0:00:18.3]} 0-1

[Event "Late-Titled-Tuesday-Blitz-September-19-2023"]
[Site "Chess.com"]
[Date "2023.09.19"]
[Round "8"]
[White "Zhigalko_Sergei"]
[Black "Sina_Movahed"]
[Result "0-1"]
[WhiteElo "2837"]
[BlackElo "2986"]
[TimeControl "180+1"]
[EndTime "15:27:08 PDT"]
[Termination "Sina_Movahed won on time"]

1. e4 {[%clk 0:03:00.9]} 1... c5 {[%clk 0:02:59.9]} 2. Nf3 {[%clk 0:03:01]} 2...
d6 {[%clk 0:02:59.2]} 3. d4 {[%clk 0:03:01.4]} 3... cxd4 {[%clk 0:02:58.6]} 4.
Qxd4 {[%clk 0:03:02.3]} 4... Nc6 {[%clk 0:02:57.6]} 5. Bb5 {[%clk 0:03:02.2]}
5... Bd7 {[%clk 0:02:57.1]} 6. Bxc6 {[%clk 0:03:02.7]} 6... Bxc6 {[%clk
0:02:58]} 7. Nc3 {[%clk 0:03:03]} 7... Nf6 {[%clk 0:02:58.1]} 8. Bg5 {[%clk
0:03:03.2]} 8... e6 {[%clk 0:02:58.5]} 9. O-O-O {[%clk 0:03:03.4]} 9... Be7
{[%clk 0:02:58.9]} 10. Rhe1 {[%clk 0:03:04]} 10... O-O {[%clk 0:02:50.9]} 11.
Kb1 {[%clk 0:03:03.9]} 11... h6 {[%clk 0:02:49]} 12. Bh4 {[%clk 0:03:03.9]}
12... Qa5 {[%clk 0:02:45.5]} 13. Qd2 {[%clk 0:03:01.3]} 13... Qh5 {[%clk
0:02:05.3]} 14. h3 {[%clk 0:02:56.2]} 14... Rfd8 {[%clk 0:01:54.9]} 15. g4
{[%clk 0:02:51.3]} 15... Qc5 {[%clk 0:01:54]} 16. g5 {[%clk 0:01:45.7]} 16...
hxg5 {[%clk 0:01:43.1]} 17. Bxg5 {[%clk 0:01:46.4]} 17... b5 {[%clk 0:01:43.4]}
18. Be3 {[%clk 0:00:59.1]} 18... Qh5 {[%clk 0:01:37.9]} 19. Ng5 {[%clk
0:00:54.3]} 19... Nh7 {[%clk 0:01:22.6]} 20. Rg1 {[%clk 0:00:45.4]} 20... d5
{[%clk 0:01:11.5]} 21. Nxh7 {[%clk 0:00:28]} 21... dxe4 {[%clk 0:00:52.9]} 22.
Bd4 {[%clk 0:00:26.6]} 22... e5 {[%clk 0:00:52.7]} 23. Bxe5 {[%clk 0:00:04.3]}
23... Qxe5 {[%clk 0:00:48.7]} 24. Qh6 {[%clk 0:00:04.3]} 24... b4 {[%clk
0:00:22.9]} 25. Qxc6 {[%clk 0:00:03.9]} 25... bxc3 {[%clk 0:00:22]} 26. Rd7
{[%clk 0:00:01.5]} 26... Rxd7 {[%clk 0:00:20.6]} 27. Qxa8+ {[%clk 0:00:01.5]}
27... Rd8 {[%clk 0:00:20.5]} 28. Qxa7 {[%clk 0:00:01.7]} 28... Kxh7 {[%clk
0:00:19.6]} 29. b3 {[%clk 0:00:02.4]} 29... Qd6 {[%clk 0:00:18.2]} 30. a4 {[%clk
0:00:02.6]} 30... Qa3 {[%clk 0:00:17.6]} 0-1

[Event "Late-Titled-Tuesday-Blitz-September-19-2023"]
[Site "Chess.com"]
[Date "2023.09.19"]
[Round "8"]
[White "Tonychess32"]
[Black "DefiantChair"]
[Result "0-1"]
[WhiteElo "2505"]
[BlackElo "2603"]
[TimeControl "180+1"]
[EndTime "15:27:08 PDT"]
[Termination "DefiantChair won by resignation"]

1. e4 {[%clk 0:02:59.9]} 1... c5 {[%clk 0:02:59.7]} 2. Nf3 {[%clk 0:02:59.5]}
2... d6 {[%clk 0:03:00.1]} 3. c3 {[%clk 0:03:00.4]} 3... Nf6 {[%clk 0:02:59.5]}
4. Bd3 {[%clk 0:03:00.5]} 4... Nc6 {[%clk 0:02:59.4]} 5. Bc2 {[%clk 0:03:00.5]}
5... Bg4 {[%clk 0:02:59]} 6. h3 {[%clk 0:03:00.6]} 6... Bxf3 {[%clk 0:02:58.7]}
7. Qxf3 {[%clk 0:03:00.5]} 7... e5 {[%clk 0:02:59.4]} 8. O-O {[%clk 0:03:00.5]}
8... Be7 {[%clk 0:02:58.8]} 9. d3 {[%clk 0:02:58.5]} 9... Rg8 {[%clk 0:02:57.1]}
10. Ba4 {[%clk 0:02:28.7]} 10... g5 {[%clk 0:02:51.2]} 11. Qf5 {[%clk
0:02:27.7]} 11... g4 {[%clk 0:02:44.6]} 12. h4 {[%clk 0:02:24.7]} 12... Qd7
{[%clk 0:02:37.9]} 13. Qxd7+ {[%clk 0:02:23.2]} 13... Nxd7 {[%clk 0:02:37.5]}
14. g3 {[%clk 0:02:23.4]} 14... a6 {[%clk 0:02:36.8]} 15. Be3 {[%clk 0:02:16.7]}
15... b5 {[%clk 0:02:36.2]} 16. Bb3 {[%clk 0:02:17]} 16... Rc8 {[%clk 0:02:30]}
17. Nd2 {[%clk 0:02:15.9]} 17... Na5 {[%clk 0:02:21.2]} 18. Bc2 {[%clk
0:02:11.3]} 18... Nf6 {[%clk 0:02:11.9]} 19. Kh2 {[%clk 0:02:10.8]} 19... d5
{[%clk 0:02:08.1]} 20. Bg5 {[%clk 0:02:03.6]} 20... d4 {[%clk 0:02:03.3]} 21. a4
{[%clk 0:01:46.2]} 21... b4 {[%clk 0:01:55.6]} 22. cxb4 {[%clk 0:01:46.5]} 22...
cxb4 {[%clk 0:01:55.1]} 23. Rac1 {[%clk 0:01:47.4]} 23... Nd7 {[%clk 0:01:48.6]}
24. Bxe7 {[%clk 0:01:45.1]} 24... Kxe7 {[%clk 0:01:48.7]} 25. Bb3 {[%clk
0:01:39.6]} 25... Nc5 {[%clk 0:01:47.2]} 26. Bc2 {[%clk 0:01:19.6]} 26... b3
{[%clk 0:01:38.5]} 27. Bd1 {[%clk 0:01:09]} 27... Nxd3 {[%clk 0:01:34.2]} 28.
Rxc8 {[%clk 0:01:04.7]} 28... Rxc8 {[%clk 0:01:35.1]} 29. Bxg4 {[%clk
0:01:05.6]} 29... Rc2 {[%clk 0:01:29.1]} 30. Nf3 {[%clk 0:00:56.7]} 30... Nxf2
{[%clk 0:01:18.5]} 31. Bh5 {[%clk 0:00:57.3]} 31... Nxe4+ {[%clk 0:01:14.6]} 32.
Kh3 {[%clk 0:00:56.1]} 32... Nf2+ {[%clk 0:01:14.5]} 33. Kg2 {[%clk 0:00:52.5]}
33... Ng4+ {[%clk 0:01:14.4]} 34. Kg1 {[%clk 0:00:51.4]} 34... Ne3 {[%clk
0:01:14.4]} 35. Rf2 {[%clk 0:00:40.9]} 35... Rxf2 {[%clk 0:01:10.5]} 36. Kxf2
{[%clk 0:00:40.9]} 36... Nd1+ {[%clk 0:01:11.1]} 37. Ke1 {[%clk 0:00:41.6]}
37... Nxb2 {[%clk 0:01:12]} 38. Nxe5 {[%clk 0:00:39.5]} 38... Nxa4 {[%clk
0:01:10.5]} 39. Kd2 {[%clk 0:00:36.4]} 39... Nc3 {[%clk 0:01:05.2]} 40. Kc1
{[%clk 0:00:29.2]} 40... f6 {[%clk 0:00:55]} 41. Nf3 {[%clk 0:00:27.4]} 41...
Nc4 {[%clk 0:00:52.4]} 42. Nxd4 {[%clk 0:00:22.8]} 42... b2+ {[%clk 0:00:52.3]}
0-1

[Event "Late-Titled-Tuesday-Blitz-September-19-2023"]
[Site "Chess.com"]
[Date "2023.09.19"]
[Round "8"]
[White "SpeedofLight0"]
[Black "Bauman_Guy"]
[Result "1-0"]
[WhiteElo "3091"]
[BlackElo "2905"]
[TimeControl "180+1"]
[EndTime "15:27:09 PDT"]
[Termination "SpeedofLight0 won by resignation"]

1. d4 {[%clk 0:03:00.9]} 1... Nf6 {[%clk 0:02:59.7]} 2. Bf4 {[%clk 0:03:00.4]}
2... g6 {[%clk 0:02:58.2]} 3. Nc3 {[%clk 0:03:00.1]} 3... d5 {[%clk 0:02:56.6]}
4. Qd2 {[%clk 0:03:00.3]} 4... c5 {[%clk 0:02:55.6]} 5. e3 {[%clk 0:03:00.3]}
5... Nc6 {[%clk 0:02:55.7]} 6. Nf3 {[%clk 0:02:59.5]} 6... Bg7 {[%clk
0:02:55.7]} 7. h4 {[%clk 0:02:58.1]} 7... a6 {[%clk 0:02:46]} 8. dxc5 {[%clk
0:02:53]} 8... Bf5 {[%clk 0:02:40.9]} 9. Nd4 {[%clk 0:02:50.7]} 9... Bd7 {[%clk
0:02:35.6]} 10. a3 {[%clk 0:02:46.3]} 10... O-O {[%clk 0:02:21.4]} 11. Be2
{[%clk 0:02:44.4]} 11... Re8 {[%clk 0:02:09.8]} 12. Nxc6 {[%clk 0:02:41.4]}
12... bxc6 {[%clk 0:02:08.3]} 13. Be5 {[%clk 0:02:41.5]} 13... Ne4 {[%clk
0:02:06.7]} 14. Qd4 {[%clk 0:02:34.1]} 14... f6 {[%clk 0:02:02.5]} 15. Bh2
{[%clk 0:02:32.8]} 15... e5 {[%clk 0:01:59.4]} 16. Qd3 {[%clk 0:02:20.8]} 16...
Nxc5 {[%clk 0:01:58.2]} 17. Qd2 {[%clk 0:02:16]} 17... Be6 {[%clk 0:01:40.5]}
18. Rd1 {[%clk 0:02:10.5]} 18... a5 {[%clk 0:01:38.3]} 19. b4 {[%clk 0:02:04.2]}
19... axb4 {[%clk 0:01:31.6]} 20. axb4 {[%clk 0:02:05.1]} 20... Na4 {[%clk
0:01:30.1]} 21. O-O {[%clk 0:01:57.3]} 21... Qb6 {[%clk 0:01:28.5]} 22. Rb1
{[%clk 0:01:49.7]} 22... f5 {[%clk 0:01:15.7]} 23. Nxa4 {[%clk 0:01:31.4]} 23...
Rxa4 {[%clk 0:01:16.6]} 24. h5 {[%clk 0:01:31.9]} 24... Bf7 {[%clk 0:01:15.3]}
25. b5 {[%clk 0:01:17.6]} 25... c5 {[%clk 0:01:11]} 26. Ra1 {[%clk 0:01:12.5]}
26... Rea8 {[%clk 0:01:09.8]} 27. Rxa4 {[%clk 0:01:12.3]} 27... Rxa4 {[%clk
0:01:10.7]} 28. Rb1 {[%clk 0:01:09.5]} 28... e4 {[%clk 0:00:40.2]} 29. c4 {[%clk
0:00:51.3]} 29... d4 {[%clk 0:00:37.3]} 30. exd4 {[%clk 0:00:51]} 30... Bxd4
{[%clk 0:00:36.1]} 31. h6 {[%clk 0:00:45.1]} 31... Be6 {[%clk 0:00:22.8]} 32.
Bf4 {[%clk 0:00:39.7]} 32... Kf7 {[%clk 0:00:19]} 33. Be3 {[%clk 0:00:37]} 33...
Ra3 {[%clk 0:00:10.7]} 34. Bxd4 {[%clk 0:00:31.5]} 34... cxd4 {[%clk 0:00:11.6]}
35. Qb4 {[%clk 0:00:31.4]} 35... Ra2 {[%clk 0:00:05.3]} 36. c5 {[%clk
0:00:31.7]} 36... Qb8 {[%clk 0:00:02.9]} 37. Qxd4 {[%clk 0:00:30.6]} 37... Rxe2
{[%clk 0:00:01.4]} 38. Qg7+ {[%clk 0:00:30.6]} 38... Ke8 {[%clk 0:00:02.3]} 39.
Qh8+ {[%clk 0:00:31]} 1-0

[Event "Late-Titled-Tuesday-Blitz-September-19-2023"]
[Site "Chess.com"]
[Date "2023.09.19"]
[Round "8"]
[White "K_A_S_T_O_R"]
[Black "chessdjw"]
[Result "0-1"]
[WhiteElo "2901"]
[BlackElo "2689"]
[TimeControl "180+1"]
[EndTime "15:27:12 PDT"]
[Termination "chessdjw won by resignation"]

1. e4 {[%clk 0:02:37.1]} 1... e5 {[%clk 0:02:59.6]} 2. Nf3 {[%clk 0:02:36.5]}
2... Nc6 {[%clk 0:03:00.1]} 3. Bb5 {[%clk 0:02:36.4]} 3... a6 {[%clk 0:03:00.3]}
4. Ba4 {[%clk 0:02:36.6]} 4... Nf6 {[%clk 0:03:00.7]} 5. O-O {[%clk 0:02:36.8]}
5... Be7 {[%clk 0:03:01.3]} 6. Re1 {[%clk 0:02:37.2]} 6... b5 {[%clk 0:03:01.9]}
7. Bb3 {[%clk 0:02:37.7]} 7... O-O {[%clk 0:03:02.6]} 8. h3 {[%clk 0:02:37.8]}
8... d6 {[%clk 0:02:59.2]} 9. c3 {[%clk 0:02:37.8]} 9... Nb8 {[%clk 0:02:59.8]}
10. d4 {[%clk 0:02:36.6]} 10... Nbd7 {[%clk 0:03:00.4]} 11. Nbd2 {[%clk
0:02:37.1]} 11... Bb7 {[%clk 0:03:00.9]} 12. Bc2 {[%clk 0:02:35.6]} 12... Re8
{[%clk 0:03:01.1]} 13. a4 {[%clk 0:02:33.4]} 13... Bf8 {[%clk 0:02:56.2]} 14.
Bd3 {[%clk 0:02:33.4]} 14... c6 {[%clk 0:02:56.2]} 15. b3 {[%clk 0:02:33.4]}
15... g6 {[%clk 0:02:52.4]} 16. Bb2 {[%clk 0:02:33.3]} 16... Nh5 {[%clk
0:02:46]} 17. Qc2 {[%clk 0:02:33.3]} 17... Nf4 {[%clk 0:02:45.7]} 18. Bf1 {[%clk
0:02:33.9]} 18... exd4 {[%clk 0:02:39.6]} 19. cxd4 {[%clk 0:02:33.2]} 19... d5
{[%clk 0:02:40]} 20. g3 {[%clk 0:02:21.9]} 20... dxe4 {[%clk 0:02:25.9]} 21.
Nxe4 {[%clk 0:02:22]} 21... Nd5 {[%clk 0:02:25.2]} 22. Ne5 {[%clk 0:02:22]}
22... Nxe5 {[%clk 0:01:34]} 23. dxe5 {[%clk 0:02:21.1]} 23... Qb6 {[%clk
0:01:32.5]} 24. a5 {[%clk 0:01:26.8]} 24... Qc7 {[%clk 0:01:17.9]} 25. Red1
{[%clk 0:01:25.8]} 25... Rxe5 {[%clk 0:00:51]} 26. Rxd5 {[%clk 0:01:12.2]} 26...
Rxe4 {[%clk 0:00:50]} 27. Qc3 {[%clk 0:00:58.5]} 27... f6 {[%clk 0:00:37.9]} 28.
Qxf6 {[%clk 0:00:58.5]} 28... Bg7 {[%clk 0:00:24.3]} 29. Qxg7+ {[%clk
0:00:42.3]} 29... Qxg7 {[%clk 0:00:25.2]} 30. Bxg7 {[%clk 0:00:42.3]} 30... cxd5
{[%clk 0:00:25.5]} 31. Bh6 {[%clk 0:00:42.1]} 31... Rae8 {[%clk 0:00:20.9]} 32.
Bd2 {[%clk 0:00:37.7]} 32... d4 {[%clk 0:00:20]} 33. Rc1 {[%clk 0:00:33.5]}
33... Rc8 {[%clk 0:00:19.1]} 34. Rd1 {[%clk 0:00:32.2]} 34... Re6 {[%clk
0:00:17.5]} 35. Bf4 {[%clk 0:00:29.9]} 35... Bf3 {[%clk 0:00:11]} 36. Rxd4
{[%clk 0:00:20.2]} 36... Re1 {[%clk 0:00:11.2]} 37. Rd2 {[%clk 0:00:19.2]} 37...
Rxf1+ {[%clk 0:00:09.9]} 0-1